bitfinex-derivatives/quotes_SOLF0:USTF0_20241216
["timestamp","ask_amount","ask_price","bid_price","bid_amount"]
[1734353141780,2.44,214.98,214.85,5.05319521]
[1734353141988,7.31252369,214.97,214.9,7.31252369]
[1734353142386,7.31252369,214.97,214.84,6.3218]
[1734353142586,7.31252369,214.97,214.9,7.31252369]
[1734353143084,7.31252369,214.95,214.79,1.547]
[1734353143279,7.31252369,214.93,214.82,5.6142379]
[1734353143478,2.3281,214.84,214.83,5.05358493]
[1734353143879,2.3281,214.84,214.83,12.36610862]
[1734353144082,2.3281,214.84,214.83,5.05358493]
[1734353144584,2.3281,214.84,214.83,11.44899196]
[1734353145279,2.3282,214.83,214.8,5.7024228]
[1734353145486,2.3282,214.83,214.81,16.49618278]
[1734353145688,2.44,214.89,214.81,13.77739196]
[1734353145888,2.44,214.89,214.84,11.44899196]
[1734353146187,2.328,214.85,214.84,11.44899196]
[1734353147290,2.44,214.92,214.84,16.49008634]
[1734353147489,2.44,214.92,214.84,11.44899196]
[1734353147881,46.64783589,214.96,214.84,11.44899196]
[1734353148086,2.44,214.95,214.85,5.04032506]
[1734353148386,2.3276,214.88,214.87,11.44899196]
[1734353149788,2.3276,214.88,214.82,4.7683]
[1734353149789,2.3278,214.87,214.84,11.44899196]
[1734353149989,2.3278,214.87,214.85,5.04040043]
[1734353150290,2.44,214.95,214.84,11.44899196]
[1734353150591,2.328,214.85,214.84,11.44899196]
[1734353150793,2.328,214.85,214.84,16.48633691]
[1734353151584,2.328,214.85,214.84,11.44899196]
[1734353157193,2.44,214.95,214.84,11.44899196]
[1734353157194,2.3279,214.86,214.84,11.44899196]
[1734353157394,2.44,214.95,214.84,11.44899196]
[1734353157593,49.59333589,214.96,214.84,11.44899196]
[1734353157795,2.3277,214.88,214.85,2.328]
[1734353158900,2.44,214.94,214.84,11.44899196]
[1734353159388,2.3276,214.89,214.85,2.3279]
[1734353160301,2.3276,214.89,214.84,11.44899196]
[1734353160302,2.3277,214.88,214.84,13.77709196]
[1734353160697,2.44,214.94,214.84,11.44899196]
[1734353160900,2.3275,214.9,214.86,2.3278]
[1734353161196,49.59333589,214.96,214.87,11.44899196]
[1734353161197,49.08783589,214.96,214.87,11.44899196]
[1734353161395,2.44,214.96,214.9,11.44899196]
[1734353161590,1.5713,215.03,214.9,11.44899196]
[1734353161900,2.3269,214.96,214.91,2.3272]
[1734353162102,7.89484695,215.02,214.91,2.3272]
[1734353163502,2.3269,214.95,214.91,2.3272]
[1734353163892,7.89484695,215.02,214.91,2.3272]
[1734353164094,2.3268,214.97,214.92,2.3272]
[1734353164296,7.89484695,215.02,214.92,2.3272]
[1734353164896,1.5713,215.03,214.93,11.44899196]
[1734353165202,1.5713,215.03,214.96,11.44899196]
[1734353165395,53.22,215.1,214.99,11.44899196]
[1734353165595,2.48,215.09,214.99,11.44899196]
[1734353166001,2.48,215.09,214.96,11.44899196]
[1734353166002,2.48,215.09,215.03,7.31368684]
[1734353166798,2.48,215.09,215.05,7.31368684]
[1734353167504,2.3257,215.06,215.05,7.31368684]
[1734353167703,2.48,215.09,215.05,7.31368684]
[1734353168102,2.48,215.09,215.0,2.48]
[1734353168103,2.48,215.09,215.01,11.4260623]
[1734353168695,2.48,215.09,215.0,2.48]
[1734353168696,13.9060623,215.09,214.95,1.5776]
[1734353168896,11.4260623,215.06,214.96,5.03831484]
[1734353169097,11.4260623,215.06,214.93,11.4260623]
[1734353169403,11.4260623,215.06,214.94,7.36747185]
[1734353169404,2.3264,215.0,214.94,7.36747185]
[1734353169603,2.3264,215.0,214.93,11.4260623]
[1734353169604,2.3264,215.0,214.95,5.04047185]
[1734353169807,2.3263,215.01,214.96,13.7527623]
[1734353171004,2.3261,215.02,214.97,2.3266]
[1734353171204,2.3261,215.02,214.92,3.967]
[1734353171205,2.48,215.08,214.99,11.4260623]
[1734353171406,2.48,215.08,215.0,5.04144525]
[1734353171595,2.3258,215.06,215.01,2.3262]
[1734353172309,2.3258,215.06,215.02,11.4260623]
[1734353173104,2.3258,215.05,215.02,11.4260623]
[1734353176409,3.9554,215.12,215.02,11.4260623]
[1734353176410,2.3259,215.04,215.02,11.4260623]
[1734353178409,3.9554,215.12,215.02,11.4260623]
[1734353179109,1.4754,215.12,215.05,13.7518623]
[1734353179700,2.3255,215.09,215.05,11.4260623]
[1734353179903,1.4754,215.12,215.05,11.4260623]
[1734353180326,2.3255,215.08,215.05,11.4260623]
[1734353182012,1.4754,215.12,215.02,11.4260623]
[1734353182307,2.48,215.11,215.02,11.4260623]
[1734353183106,13.9060623,215.11,214.99,11.4260623]
[1734353183506,2.3263,215.01,214.99,11.4260623]
[1734353184213,13.9060623,215.11,214.99,11.4260623]
[1734353184411,2.3261,215.02,214.99,11.4260623]
[1734353184818,13.9060623,215.11,214.99,11.4260623]
[1734353185113,2.3263,215.0,214.99,11.4260623]
[1734353185815,2.3265,214.99,214.98,2.48]
[1734353186012,2.48,215.06,214.95,1.5062]
[1734353186209,2.48,215.06,214.93,13.9060623]
[1734353186510,2.3268,214.97,214.93,16.2330623]
[1734353187015,2.3268,214.97,214.94,2.327]
[1734353187314,2.3268,214.97,214.93,13.9060623]
[1734353187516,2.3268,214.97,214.93,16.2331623]
[1734353187704,2.3268,214.97,214.93,13.7531623]
[1734353189412,1.4732,215.04,214.93,11.4260623]
[1734353189712,2.327,214.94,214.93,11.4260623]
[1734353190709,2.3268,214.96,214.93,11.4260623]
[1734353190913,2.48,215.01,214.93,11.4260623]
[1734353191106,1.4732,215.04,214.94,4.8069]
[1734353191309,2.3268,214.97,214.94,2.48]
[1734353191509,2.3268,214.97,214.93,11.4260623]
[1734353192215,2.4,215.0,214.92,2.4]
[1734353192610,2.4,215.0,214.9,16.88483431]
[1734353192806,2.4,215.0,214.9,11.4260623]
[1734353194211,11.4260623,214.98,214.87,11.4260623]
[1734353194411,11.4260623,214.98,214.84,15.4267623]
[1734353194618,3.1305,214.97,214.84,15.4267623]
[1734353195117,1.5312,214.96,214.87,11.4260623]
[1734353195312,2.3272,214.93,214.88,2.3276]
[1734353195519,2.3272,214.93,214.9,11.4260623]
[1734353198820,1.5312,214.96,214.9,11.4260623]
[1734353199021,1.5312,214.96,214.85,5.56453836]
[1734353199214,1.5312,214.96,214.86,5.05721036]
[1734353199421,2.3271,214.93,214.85,19.39060066]
[1734353199612,1.5312,214.96,214.85,19.39060066]
[1734353199813,1.5312,214.96,214.85,7.96453836]
[1734353200115,1.5312,214.96,214.86,11.4260623]
[1734353201421,2.3275,214.9,214.86,11.4260623]
[1734353201617,1.5312,214.96,214.86,11.4260623]
[1734353201818,1.5312,214.96,214.85,2.4]
[1734353202023,1.5312,214.96,214.82,4.7283]
[1734353202226,1.5312,214.96,214.83,16.48569418]
[1734353202420,1.5312,214.96,214.83,11.4260623]
[1734353202617,2.3278,214.87,214.83,11.4260623]
[1734353203216,2.4,214.92,214.83,11.4260623]
[1734353203425,2.3277,214.88,214.83,13.7541623]
[1734353203619,2.3277,214.88,214.83,19.46809825]
[1734353203817,2.4,214.92,214.83,11.4260623]
[1734353204024,2.3279,214.86,214.83,11.4260623]
[1734353204427,2.3279,214.86,214.81,2.3283]
[1734353204626,2.4,214.92,214.82,5.05912532]
[1734353204820,13.8260623,214.92,214.79,16.98849872]
[1734353205018,13.8260623,214.92,214.8,5.0597341]
[1734353205225,2.4,214.92,214.82,13.7543623]
[1734353206425,2.3279,214.86,214.82,13.7543623]
[1734353208427,2.328,214.85,214.82,11.4260623]
[1734353209430,2.328,214.85,214.81,2.3284]
[1734353210038,2.328,214.85,214.84,7.32611079]
[1734353211835,2.328,214.85,214.81,2.3284]
[1734353212033,9.72611079,214.86,214.76,3.0525]
[1734353212234,9.72611079,214.86,214.8,7.32611079]
[1734353212735,9.72611079,214.86,214.76,3.0525]
[1734353212936,9.72611079,214.86,214.78,7.32611079]
[1734353213131,2.3287,214.79,214.76,3.0525]
[1734353213334,9.72611079,214.86,214.78,7.32611079]
[1734353213936,2.3282,214.83,214.76,14.5049771]
[1734353214136,2.4,214.86,214.76,14.5049771]
[1734353214734,2.3286,214.8,214.76,14.5049771]
[1734353215829,2.3286,214.8,214.76,19.99542049]
[1734353216031,2.3284,214.82,214.79,11.4524771]
[1734353217333,2.4,214.87,214.79,11.4524771]
[1734353217535,2.4,214.9,214.82,11.4524771]
[1734353219440,2.3279,214.86,214.82,13.7807771]
[1734353219740,2.4,214.9,214.82,11.4524771]
[1734353219935,2.4,214.9,214.8,2.3284]
[1734353220148,2.4,214.9,214.79,13.8524771]
[1734353220635,2.4,214.9,214.79,11.4524771]
[1734353220940,2.3284,214.82,214.79,11.4524771]
[1734353221133,12.9530771,214.89,214.79,11.4524771]
[1734353221335,14.5226771,214.89,214.79,11.4524771]
[1734353221532,2.3284,214.82,214.79,11.4524771]
[1734353221737,3.0702,214.89,214.79,11.4524771]
[1734353221936,3.0702,214.89,214.79,13.7810771]
[1734353222438,2.3283,214.83,214.79,13.7810771]
[1734353222851,3.0702,214.89,214.79,11.4524771]
[1734353223043,2.3283,214.82,214.79,11.4524771]
[1734353223936,2.3283,214.82,214.79,13.7810771]
[1734353224244,2.3283,214.82,214.79,11.4524771]
[1734353225138,2.4,214.87,214.76,22.32422049]
[1734353225343,2.4,214.87,214.77,5.04278353]
[1734353225548,2.4,214.87,214.76,22.32422049]
[1734353226146,2.4,214.87,214.77,5.04439837]
[1734353226337,2.3286,214.8,214.76,22.32422049]
[1734353226543,2.3286,214.8,214.77,5.05074916]
[1734353226746,2.3286,214.8,214.76,22.32422049]
[1734353227046,2.3287,214.78,214.77,5.05284521]
[1734353227247,2.4,214.82,214.76,11.4524771]
[1734353228048,2.4,214.82,214.73,13.3586971]
[1734353228350,2.4,214.82,214.73,19.69728834]
[1734353228546,2.4,214.82,214.74,5.05678079]
[1734353228739,2.4,214.82,214.75,5.05678079]
[1734353228938,2.3289,214.77,214.73,14.1190971]
[1734353229140,2.3289,214.77,214.74,5.05732787]
[1734353229346,2.4,214.82,214.73,14.1190971]
[1734353229544,2.4,214.82,214.74,5.0593853]
[1734353229745,2.4,214.82,214.73,14.1190971]
[1734353229941,2.4,214.82,214.74,5.05934415]
[1734353230246,11.4524771,214.8,214.73,0.33742]
[1734353230448,2.4,214.79,214.73,0.33742]
[1734353230650,2.3289,214.77,214.73,11.7898971]
[1734353230850,2.4,214.8,214.73,11.7898971]
[1734353231250,2.4,214.8,214.74,5.05648706]
[1734353231444,2.4,214.8,214.73,11.7898971]
[1734353231844,2.4,214.8,214.74,5.05795103]
[1734353232042,2.329,214.76,214.73,11.7898971]
[1734353232251,2.4,214.8,214.73,11.7898971]
[1734353232444,2.4,214.8,214.73,0.33742]
[1734353232747,2.3292,214.74,214.73,0.33742]
[1734353234852,2.3292,214.74,214.48,6.41457914]
[1734353234853,22.9049542,214.74,214.48,6.41457914]
[1734353235155,11.4524771,214.62,214.54,6.64285814]
[1734353235348,2.3308,214.6,214.55,5.06015814]
[1734353235554,2.4,214.61,214.56,5.06015814]
[1734353235756,2.4,214.61,214.57,5.06015814]
[1734353235949,2.331,214.58,214.54,1.5827]
[1734353236149,2.4,214.61,214.55,5.06085487]
[1734353236354,11.4524771,214.59,214.43,12.9820771]
[1734353236553,11.4524771,214.59,214.46,2.3322]
[1734353236754,11.4524771,214.59,214.47,5.06472402]
[1734353236952,11.4524771,214.59,214.48,5.06472402]
[1734353237147,2.4,214.61,214.49,5.06472402]
[1734353237352,11.4524771,214.56,214.5,5.06472402]
[1734353237655,2.3315,214.53,214.51,5.06472402]
[1734353237856,2.3315,214.53,214.45,5.64714054]
[1734353238055,2.4,214.55,214.46,7.38854866]
[1734353238254,2.4,214.55,214.47,5.05634866]
[1734353238550,2.3316,214.52,214.48,5.05634866]
[1734353238750,2.3316,214.52,214.49,5.05634866]
[1734353238954,2.3316,214.52,214.5,5.05634866]
[1734353239245,2.3316,214.52,214.46,2.3322]
[1734353239453,2.3316,214.52,214.47,5.04141416]
[1734353239749,11.4524771,214.61,214.48,5.04141416]
[1734353239951,2.4,214.6,214.49,5.04141416]
[1734353240150,2.4,214.6,214.46,11.4524771]
[1734353240354,2.3316,214.52,214.47,5.03469753]
[1734353240552,2.3316,214.52,214.48,5.03469753]
[1734353240754,2.4,214.6,214.49,5.03469753]
[1734353240957,2.4,214.6,214.5,5.03469753]
[1734353241147,2.4,214.6,214.49,13.7843771]
[1734353241350,2.4,214.6,214.5,5.02936726]
[1734353241648,2.4,214.6,214.51,5.02879351]
[1734353241849,2.4,214.6,214.47,11.4524771]
[1734353242059,2.4,214.6,214.48,5.02911028]
[1734353242261,2.4,214.6,214.49,5.02911028]
[1734353242460,2.3315,214.53,214.49,5.02911028]
[1734353242651,2.3315,214.53,214.5,5.02911028]
[1734353242853,2.4,214.6,214.47,11.4524771]
[1734353243051,2.58,214.59,214.49,2.3318]
[1734353243352,2.58,214.59,214.5,5.02596537]
[1734353243547,2.58,214.59,214.48,2.332]
[1734353243752,2.58,214.59,214.49,5.0242801]
[1734353243948,2.58,214.59,214.5,5.0242801]
[1734353244255,2.58,214.59,214.45,5.64714054]
[1734353244256,11.4524771,214.58,214.45,5.64714054]
[1734353244453,11.4524771,214.58,214.46,5.02322911]
[1734353244654,2.3316,214.52,214.47,5.02322911]
[1734353244852,2.3316,214.52,214.46,2.3321]
[1734353245058,11.4524771,214.58,214.47,5.02410574]
[1734353245360,11.4524771,214.58,214.46,2.3321]
[1734353245851,11.4524771,214.58,214.47,5.0237918]
[1734353246057,11.4524771,214.58,214.46,2.3321]
[1734353246257,11.4524771,214.58,214.47,5.02385551]
[1734353246452,11.4524771,214.58,214.45,17.09961764]
[1734353246758,11.4524771,214.58,214.46,5.02122723]
[1734353246958,2.58,214.59,214.43,1.5296]
[1734353246959,11.4524771,214.55,214.43,1.5296]
[1734353247161,2.58,214.54,214.44,5.02214418]
[1734353247360,2.58,214.54,214.45,5.02214418]
[1734353247658,2.3321,214.47,214.43,1.5296]
[1734353247859,2.3321,214.47,214.44,5.01851752]
[1734353248055,2.58,214.54,214.43,7.19235162]
[1734353248256,2.58,214.54,214.44,5.01989477]
[1734353248257,2.3321,214.48,214.44,5.01989477]
[1734353248458,2.3321,214.48,214.43,9.52475162]
[1734353248656,2.3321,214.48,214.44,5.01886456]
[1734353248860,2.3321,214.48,214.43,9.52475162]
[1734353248861,2.3318,214.5,214.43,7.19235162]
[1734353249263,2.3318,214.5,214.44,5.01973105]
[1734353249556,2.58,214.55,214.45,16.46673411]
[1734353249758,16.0692771,214.6,214.46,5.01425701]
[1734353250058,16.0692771,214.6,214.47,5.01425701]
[1734353250059,2.58,214.57,214.47,5.01425701]
[1734353250256,2.58,214.57,214.46,11.4524771]
[1734353250454,2.58,214.57,214.47,5.01218357]
[1734353250652,2.58,214.56,214.46,11.4524771]
[1734353251260,2.3319,214.5,214.45,4.9123]
[1734353251462,2.58,214.56,214.45,2.58]
[1734353251654,2.58,214.56,214.43,18.64482872]
[1734353251856,2.3322,214.46,214.43,18.64482872]
[1734353252053,2.58,214.51,214.43,18.64482872]
[1734353252559,2.58,214.51,214.43,1.5296]
[1734353252861,2.3325,214.44,214.41,3.0415]
[1734353253162,14.0324771,214.51,214.42,5.01328549]
[1734353253358,11.4524771,214.48,214.4,0.82458]
[1734353253558,2.3326,214.43,214.4,0.82458]
[1734353254062,2.3327,214.42,214.4,0.82458]
[1734353254255,2.6,214.46,214.4,0.82458]
[1734353255658,2.3327,214.41,214.4,0.82458]
[1734353256759,4.9327,214.41,214.4,0.82458]
[1734353257458,14.0524771,214.41,214.15,6.41457914]
[1734353257663,14.0524771,214.41,214.13,129.96757307]
[1734353257664,11.4524771,214.36,214.22,17.06409146]
[1734353257862,2.6,214.35,214.25,11.4524771]
[1734353258165,2.3336,214.33,214.26,5.02046686]
[1734353258467,2.6,214.36,214.28,13.7866771]
[1734353258669,2.3336,214.34,214.22,5.61161436]
[1734353258862,2.6,214.36,214.23,16.47112776]
[1734353259167,11.4524771,214.39,214.24,5.01865066]
[1734353259362,2.6,214.38,214.26,11.4524771]
[1734353259566,11.4524771,214.39,214.27,5.01865066]
[1734353259567,2.6,214.37,214.27,5.01865066]
[1734353259767,2.3337,214.32,214.26,13.7868771]
[1734353259961,2.3337,214.32,214.27,5.01538071]
[1734353260265,2.3337,214.32,214.26,13.7868771]
[1734353260456,2.3339,214.31,214.27,5.01361932]
[1734353260659,2.6,214.37,214.26,11.4524771]
[1734353261068,2.3341,214.29,214.26,11.4524771]
[1734353261365,2.6,214.37,214.26,11.4524771]
[1734353261566,2.3341,214.29,214.26,11.4524771]
[1734353262359,2.3343,214.27,214.22,5.61161436]
[1734353262562,2.6,214.31,214.18,5.5818]
[1734353262563,2.6,214.31,214.23,16.46485662]
[1734353262865,2.3345,214.25,214.23,11.4524771]
[1734353264065,2.3345,214.25,214.17,14.0524771]
[1734353264066,2.3349,214.21,214.16,2.3354]
[1734353264267,2.6,214.27,214.17,16.46249971]
[1734353264471,2.6,214.27,214.2,11.4524771]
[1734353264673,2.3347,214.23,214.21,5.01002261]
[1734353264873,11.4524771,214.33,214.2,11.4524771]
[1734353265064,2.3345,214.26,214.21,7.34606538]
[1734353265265,2.3345,214.26,214.17,5.48114706]
[1734353265266,2.6,214.27,214.22,5.01116538]
[1734353265470,2.6,214.28,214.17,16.93362416]
[1734353265670,2.3348,214.22,214.18,5.00863505]
[1734353265876,2.6,214.27,214.19,5.00863505]
[1734353266071,2.6,214.27,214.2,5.00863505]
[1734353266271,2.3347,214.23,214.17,19.26892416]
[1734353266573,2.3347,214.23,214.18,7.33934269]
[1734353266769,2.6,214.27,214.2,11.4524771]
[1734353266973,2.6,214.27,214.21,5.00414269]
[1734353267269,2.3347,214.24,214.22,5.00636446]
[1734353267472,2.3347,214.24,214.19,11.4524771]
[1734353267675,2.3347,214.24,214.2,5.00476532]
[1734353267875,2.3347,214.24,214.21,5.00476532]
[1734353268070,2.3347,214.24,214.22,5.00476532]
[1734353268270,2.6,214.31,214.24,2.3345]
[1734353268468,1.5995,214.36,214.25,16.45359277]
[1734353268873,11.4524771,214.35,214.25,5.00111567]
[1734353269076,11.4524771,214.35,214.2,2.6]
[1734353269270,11.4524771,214.32,214.2,2.6]
[1734353269476,2.3345,214.25,214.21,2.3349]
[1734353269675,2.3345,214.25,214.22,5.00315762]
[1734353269876,2.3345,214.25,214.23,5.00315762]
[1734353270071,2.3345,214.25,214.24,5.00315762]
[1734353270774,2.3344,214.26,214.24,5.00315762]
[1734353271080,2.3344,214.26,214.21,2.3348]
[1734353271081,2.3344,214.26,214.25,5.00315762]
[1734353271279,14.0524771,214.32,214.25,5.01105149]
[1734353271473,14.0524771,214.32,214.18,11.4524771]
[1734353271774,14.0524771,214.32,214.19,5.01037673]
[1734353271984,2.6,214.32,214.21,11.4524771]
[1734353272175,11.4524771,214.35,214.22,2.62]
[1734353272381,11.4524771,214.35,214.23,5.01026523]
[1734353272581,11.4524771,214.35,214.24,5.01026523]
[1734353272780,11.4524771,214.35,214.25,5.01026523]
[1734353272982,11.4524771,214.35,214.26,7.34466523]
[1734353273282,4.2195,214.36,214.27,5.01026523]
[1734353273479,2.3339,214.31,214.28,5.01026523]
[1734353273686,2.3339,214.31,214.29,5.01026523]
[1734353273881,2.3339,214.31,214.27,2.3342]
[1734353274077,2.3336,214.34,214.28,7.34984144]
[1734353274285,2.62,214.36,214.29,5.01574144]
[1734353274476,2.62,214.41,214.3,5.01574144]
[1734353274683,14.0724771,214.41,214.31,7.34944144]
[1734353274901,14.0724771,214.41,214.32,5.01574144]
[1734353275278,2.3334,214.36,214.33,5.0216575]
[1734353275580,14.0724771,214.41,214.32,2.3336]
[1734353275884,14.0724771,214.41,214.33,5.02189661]
[1734353276080,14.0724771,214.41,214.32,2.3336]
[1734353276280,14.0724771,214.41,214.33,7.36013607]
[1734353276480,11.4524771,214.41,214.34,5.02653607]
[1734353276685,2.333,214.4,214.35,7.35993607]
[1734353276887,2.333,214.4,214.36,5.02653607]
[1734353277087,2.62,214.43,214.37,5.02653607]
[1734353277287,2.62,214.43,214.33,2.62]
[1734353277484,2.62,214.43,214.34,5.0322785]
[1734353277782,2.333,214.4,214.35,7.3656785]
[1734353277981,2.333,214.4,214.36,5.0322785]
[1734353278181,2.333,214.4,214.37,5.0322785]
[1734353278381,2.333,214.4,214.38,5.0322785]
[1734353278586,2.333,214.4,214.39,5.0322785]
[1734353279184,2.333,214.4,214.35,2.3334]
[1734353279383,2.333,214.4,214.36,5.04396834]
[1734353279584,2.333,214.4,214.37,5.04396834]
[1734353279783,2.333,214.4,214.38,5.04396834]
[1734353279979,2.62,214.43,214.39,5.04459106]
[1734353280183,11.4524771,214.41,214.31,2.62]
[1734353280487,2.3336,214.34,214.32,5.04752525]
[1734353280787,2.3336,214.34,214.33,5.04752525]
[1734353280987,2.3336,214.34,214.33,5.04725625]
[1734353281381,11.4524771,214.41,214.33,5.04734402]
[1734353281591,11.4524771,214.41,214.34,5.04734402]
[1734353281784,11.4524771,214.41,214.29,2.334]
[1734353281985,11.4524771,214.41,214.3,5.04645615]
[1734353281986,2.3337,214.32,214.3,5.04645615]
[1734353282187,2.3337,214.32,214.31,5.04645615]
[1734353283088,2.3343,214.28,214.22,14.0724771]
[1734353283284,2.3343,214.28,214.24,5.04845373]
[1734353283510,2.3343,214.28,214.25,5.04845373]
[1734353283690,2.3341,214.29,214.26,5.04845373]
[1734353283991,2.62,214.34,214.27,5.04845373]
[1734353284189,2.62,214.34,214.28,5.04845373]
[1734353284387,2.62,214.34,214.19,11.4524771]
[1734353284388,11.4524771,214.32,214.19,11.4524771]
[1734353284585,11.4524771,214.32,214.2,7.66970491]
[1734353284794,11.4524771,214.32,214.21,5.04970491]
[1734353284993,11.4524771,214.32,214.22,5.04970491]
[1734353285192,11.4524771,214.32,214.23,5.04970491]
[1734353285392,2.3344,214.26,214.24,5.04970491]
[1734353285693,2.3344,214.26,214.18,3.0955]
[1734353285694,2.3344,214.26,214.25,5.04970491]
[1734353285994,2.3344,214.26,214.06,107.22422055]
[1734353285995,2.3351,214.2,214.13,11.4524771]
[1734353286396,2.62,214.24,214.13,13.7881771]
[1734353286791,2.62,214.24,214.13,11.4524771]
[1734353286992,2.62,214.27,214.13,11.4524771]
[1734353287201,2.62,214.27,214.16,11.4524771]
[1734353287502,2.62,214.27,214.16,14.0724771]
[1734353288001,2.62,214.29,214.19,11.4524771]
[1734353288193,1.5449,214.34,214.22,11.4524771]
[1734353288400,2.62,214.35,214.23,2.62]
[1734353288596,2.62,214.35,214.23,4.1935]
[1734353289005,2.3342,214.28,214.24,2.3346]
[1734353289703,2.3338,214.32,214.23,4.1935]
[1734353289898,2.62,214.35,214.23,4.1935]
[1734353290099,2.62,214.35,214.12,32.70639834]
[1734353290301,2.62,214.35,214.22,2.3347]
[1734353290496,2.62,214.35,214.2,2.62]
[1734353291102,2.62,214.35,214.2,2.3349]
[1734353291103,2.3346,214.25,214.2,2.3349]
[1734353291901,256.79165409,214.51,214.24,18.41655279]
[1734353292109,3.0877,214.5,214.29,18.41655279]
[1734353292307,5.65878109,214.48,214.34,18.41655279]
[1734353292602,3.0877,214.5,214.4,2.3328]
[1734353292805,3.0877,214.5,214.38,18.41655279]
[1734353292806,3.0877,214.5,214.41,2.62]
[1734353292997,3.0877,214.5,214.35,1.5572]
[1734353293199,23.94288298,214.49,214.35,1.5572]
[1734353294107,26.56288298,214.49,214.35,1.5572]
[1734353294509,23.94288298,214.49,214.35,1.5572]
[1734353294705,26.56288298,214.49,214.35,1.5572]
[1734353295109,2.3325,214.43,214.35,1.5572]
[1734353295303,8.14633019,214.49,214.35,1.5572]
[1734353295505,5.52633019,214.49,214.35,1.5572]
[1734353295712,5.52633019,214.49,214.4,2.3328]
[1734353295713,2.3321,214.48,214.4,2.3328]
[1734353295909,5.52633019,214.49,214.4,2.62]
[1734353296812,2.3322,214.46,214.4,2.62]
[1734353297408,2.3322,214.46,214.39,2.3329]
[1734353297409,2.62,214.46,214.24,14.94825083]
[1734353297608,18.41655279,214.45,214.3,2.62]
[1734353298103,2.3328,214.41,214.31,5.0115257]
[1734353298307,2.3328,214.41,214.32,5.0115257]
[1734353298308,3.0406,214.4,214.32,5.0115257]
[1734353298505,3.0406,214.4,214.3,2.62]
[1734353298706,3.0406,214.4,214.31,5.01360344]
[1734353299108,2.3331,214.39,214.31,2.3338]
[1734353299411,3.0406,214.4,214.31,2.3338]
[1734353299612,3.0406,214.4,214.32,5.01348318]
[1734353299812,3.0406,214.4,214.31,2.3338]
[1734353300112,3.0406,214.4,214.32,5.0126438]
[1734353300314,3.0406,214.4,214.3,2.62]
[1734353300713,2.3334,214.35,214.3,2.62]
[1734353301113,2.3334,214.35,214.26,1.5494]
[1734353301309,2.3334,214.35,214.27,7.63912594]
[1734353301617,2.3334,214.35,214.28,5.01912594]
[1734353301911,2.3334,214.35,214.29,5.01912594]
[1734353302215,2.3334,214.35,214.3,5.01912594]
[1734353302410,2.3334,214.35,214.28,2.62]
[1734353302611,2.3334,214.35,214.29,7.35496919]
[1734353302810,3.0406,214.4,214.28,2.62]
[1734353302811,3.0406,214.4,214.3,5.02096919]
[1734353303010,3.0406,214.4,214.31,5.02096919]
[1734353303208,3.0406,214.4,214.32,5.02096919]
[1734353303413,2.3332,214.37,214.33,5.02096919]
[1734353303609,2.3332,214.37,214.31,2.3337]
[1734353303812,2.3332,214.37,214.32,5.01895107]
[1734353304015,3.0406,214.4,214.33,5.01895107]
[1734353304314,2.3331,214.39,214.33,2.3336]
[1734353304519,2.3331,214.39,214.33,4.9536]
[1734353304813,4.0837,214.44,214.36,2.3333]
[1734353304814,2.3326,214.43,214.36,2.3333]
[1734353305712,2.3324,214.45,214.33,21.03655279]
[1734353305916,1.6096,214.47,214.34,6.51977249]
[1734353306119,1.6096,214.47,214.36,2.3332]
[1734353306423,1.6096,214.47,214.37,5.00667249]
[1734353306611,1.6096,214.47,214.38,5.00667249]
[1734353306818,2.3327,214.42,214.36,2.3332]
[1734353307017,2.3327,214.42,214.37,5.00306334]
[1734353307213,2.3327,214.42,214.36,4.9532]
[1734353307416,2.3327,214.42,214.37,5.00207238]
[1734353307712,2.3327,214.42,214.37,2.3332]
[1734353308418,2.62,214.42,214.28,2.62]
[1734353308621,2.62,214.42,214.25,20.02275279]
[1734353308920,2.3337,214.33,214.27,7.34074479]
[1734353309119,1.588,214.41,214.23,1.5131]